bitfinex/quotes_SOLUSD_20260201
["timestamp","ask_amount","ask_price","bid_price","bid_amount"]
[1769914530775,4.31383818,105.99,105.89,9.44358001]
[1769914530973,4.31383818,105.99,105.9,4.21762389]
[1769914531578,4.31383818,105.98,105.9,4.21762389]
[1769914531779,4.31383818,105.96,105.9,4.21762389]
[1769914532087,4.31383818,105.92,105.84,155.48153885]
[1769914532280,4.31383818,105.92,105.84,151.26391496]
[1769914532672,4.31383818,105.92,105.84,155.48153885]
[1769914532872,4.31383818,105.92,105.85,4.21762389]
[1769914533072,4.31383818,105.92,105.86,13.66383762]
[1769914533298,4.31383818,105.92,105.86,4.21762389]
[1769914533975,4.31383818,105.9,105.86,4.21762389]
[1769914534375,4.31383818,105.9,105.85,4.21762389]
[1769914535104,4.31383818,105.9,105.86,4.21762389]
[1769914535474,4.31383818,105.9,105.87,4.21762389]
[1769914535889,9.44318604,105.9,105.85,13.66463615]
[1769914536087,4.31383818,105.89,105.85,13.66463615]
[1769914536693,4.31383818,105.89,105.84,4.21762389]
[1769914537190,4.31383818,105.89,105.81,26.22]
[1769914537391,4.31383818,105.89,105.82,4.436898]
[1769914538168,4.12473072,105.87,105.82,4.436898]
[1769914539084,9.44465432,105.88,105.83,4.436898]
[1769914539284,13.5685927,105.89,105.84,4.436898]
[1769914540182,13.5685927,105.89,105.84,13.88472856]
[1769914540593,4.12473072,105.89,105.85,4.436898]
[1769914541588,13.56760135,105.9,105.85,4.436898]
[1769914542290,13.56851571,105.89,105.85,4.436898]
[1769914542490,13.56851571,105.89,105.85,13.88421464]
[1769914545108,13.56851571,105.89,105.85,4.436898]
[1769914545789,4.10491945,105.88,105.85,4.436898]
[1769914546595,13.55017328,105.88,105.85,4.436898]
[1769914547203,4.10491945,105.87,105.84,4.08916483]
[1769914547397,4.10491945,105.87,105.83,9.44896918]
[1769914547605,4.10491945,105.87,105.83,4.08916483]
[1769914548402,4.10491945,105.87,105.84,4.08916483]
[1769914548981,9.44416175,105.89,105.85,4.08916483]
[1769914549185,116.24810684,105.9,105.85,4.08916483]
[1769914549399,4.10491945,105.89,105.85,4.08916483]
[1769914549708,116.24810684,105.9,105.85,4.08916483]
[1769914550415,116.24810684,105.9,105.85,13.53595838]
[1769914550713,4.10491945,105.89,105.85,13.53595838]
[1769914551409,4.10491945,105.89,105.86,4.08916483]
[1769914551601,13.54663512,105.92,105.88,4.08916483]
[1769914551798,4.10491945,105.91,105.87,4.08916483]
[1769914553610,13.54689963,105.91,105.87,13.53409665]
[1769914554510,13.54689963,105.91,105.88,4.08916483]
[1769914554707,4.10491945,105.91,105.88,4.08916483]
[1769914554903,13.54702373,105.91,105.88,4.08916483]
[1769914557217,13.54645035,105.92,105.88,4.08916483]
[1769914557697,4.10491945,105.91,105.88,4.08916483]
[1769914557896,4.10491945,105.91,105.87,4.08916483]
[1769914559309,9.44287063,105.9,105.87,4.08916483]
[1769914559615,13.54779008,105.9,105.87,4.08916483]
[1769914561311,37.15496666,105.9,105.87,4.08916483]
[1769914561718,4.10491945,105.89,105.85,4.08916483]
[1769914562020,4.10491945,105.89,105.84,4.08916483]
[1769914563004,4.10491945,105.87,105.84,4.08916483]
[1769914563199,4.10491945,105.87,105.83,4.08916483]
[1769914563419,4.10491945,105.87,105.79,23.6304009]
[1769914563420,4.10491945,105.87,105.81,4.08916483]
[1769914564001,4.10491945,105.87,105.82,4.08916483]
[1769914565211,13.55135814,105.86,105.82,4.08916483]
[1769914566911,37.16745487,105.86,105.82,4.08916483]
[1769914568921,4.11381747,105.9,105.84,4.21824739]
[1769914570142,13.55757986,105.89,105.85,4.21824739]
[1769914572609,4.11381747,105.88,105.85,4.21824739]
[1769914574129,4.11381747,105.88,105.83,4.21824739]
[1769914574817,13.55936389,105.87,105.83,4.21824739]
[1769914576108,13.55936389,105.87,105.84,4.21824739]
[1769914576527,9.44554642,105.87,105.84,4.21824739]
[1769914576823,116.25859526,105.88,105.85,4.21824739]
[1769914579413,4.11381747,105.87,105.83,4.21824739]
[1769914579625,4.11381747,105.87,105.82,4.21824739]
[1769914581733,4.11381747,105.85,105.82,4.21824739]
[1769914583125,9.44822373,105.84,105.82,4.21824739]
[1769914588713,13.5620412,105.84,105.8,4.21824739]
[1769914590335,13.5620412,105.84,105.81,4.21824739]
[1769914591648,117.52310042,105.85,105.81,4.21824739]
[1769914592424,4.11381747,105.84,105.81,4.21824739]
[1769914592641,13.5620412,105.84,105.81,4.21824739]
[1769914593234,4.11381747,105.84,105.81,4.21824739]
[1769914594046,13.5621565,105.84,105.81,4.21824739]
[1769914595847,9.44833903,105.84,105.81,4.21824739]
[1769914597345,4.21298993,105.83,105.8,13.78074259]
[1769914598946,13.66132896,105.84,105.81,4.32933104]
[1769914599143,13.65948367,105.86,105.81,4.32933104]
[1769914599348,13.65853635,105.87,105.82,7.76101966]
[1769914599549,13.65853635,105.87,105.83,4.32933104]
[1769914599942,13.65853635,105.87,105.84,4.32933104]
[1769914600344,4.21298993,105.86,105.83,4.32933104]
[1769914602342,13.65943797,105.86,105.83,4.32933104]
[1769914604345,13.51518947,105.86,105.83,4.32933104]
[1769914604551,9.44644804,105.86,105.82,4.46542687]
[1769914605154,99.23648606,105.86,105.82,4.46542687]
[1769914606348,9.44735656,105.85,105.82,4.46542687]
[1769914606551,9.30330886,105.85,105.82,4.46542687]
[1769914610761,4.4459639,105.84,105.81,4.46542687]
[1769914611458,4.4459639,105.84,105.81,13.91623644]
[1769914611757,4.4459639,105.84,105.81,4.46542687]
[1769914613342,13.74927276,105.85,105.81,4.46542687]
[1769914613538,13.74927276,105.85,105.82,4.46542687]
[1769914613759,9.30330886,105.85,105.82,4.46542687]
[1769914614073,13.74927276,105.85,105.82,4.46542687]
[1769914616064,90.42729154,105.86,105.83,4.46542687]
[1769914616442,76.53443495,105.86,105.83,4.46542687]
[1769914616648,9.44601943,105.87,105.83,4.46542687]
[1769914616841,13.89107004,105.88,105.84,4.46542687]
[1769914618065,13.89107004,105.88,105.85,4.46542687]
[1769914619667,9.44510614,105.88,105.85,4.46542687]
[1769914620064,13.89107004,105.88,105.85,4.46542687]
[1769914620969,13.88981849,105.89,105.86,4.46542687]
[1769914621757,13.88889312,105.9,105.86,4.46542687]
[1769914621962,9.44243747,105.91,105.87,4.46542687]
[1769914622949,4.4459639,105.9,105.83,4.46542687]
[1769914623153,4.4459639,105.9,105.85,4.46542687]
[1769914624259,13.88972629,105.89,105.85,4.46542687]
[1769914624456,4.4459639,105.88,105.85,4.46542687]
[1769914625261,4.4459639,105.89,105.85,4.46542687]
[1769914626473,4.4459639,105.89,105.84,4.46542687]
[1769914627473,13.82882925,105.88,105.85,4.05476126]
[1769914629777,4.38417493,105.87,105.83,13.50342719]
[1769914629974,4.38417493,105.87,105.82,13.50455354]
[1769914630359,4.38417493,105.87,105.83,4.05476126]
[1769914631374,9.44643869,105.86,105.83,4.05476126]
[1769914632072,4.38417493,105.85,105.82,4.05476126]
[1769914633261,9.44822373,105.84,105.82,4.05476126]
[1769914634870,9.44822373,105.84,105.81,4.05476126]
[1769914635797,9.44822373,105.84,105.8,9.4513932]
[1769914635798,4.38417493,105.83,105.8,4.05476126]
[1769914636085,4.38417493,105.83,105.78,4.05476126]
[1769914637377,13.83418438,105.82,105.78,4.05476126]
[1769914639178,0.10563072,105.81,105.78,4.05476126]
[1769914639388,0.10563072,105.81,105.77,4.05476126]
[1769914640685,0.10563072,105.81,105.76,4.05476126]
[1769914640981,4.27527085,105.82,105.74,0.2]
[1769914640982,4.38417493,105.79,105.74,0.2]
[1769914641170,4.38417493,105.79,105.74,4.25476126]
[1769914641478,4.38417493,105.77,105.74,4.25476126]
[1769914641686,13.83775783,105.78,105.74,4.25476126]
[1769914642684,4.38417493,105.77,105.74,4.25476126]
[1769914644587,9.4535829,105.78,105.74,4.25476126]
[1769914644785,80.91860988,105.8,105.75,4.05476126]
[1769914645379,90.37083012,105.8,105.75,4.05476126]
[1769914645778,4.38417493,105.79,105.76,4.05476126]
[1769914647475,13.83686723,105.79,105.76,4.05476126]
[1769914647881,4.38417493,105.79,105.76,4.05476126]
[1769914649177,13.83756673,105.79,105.76,4.05476126]
[1769914650212,4.38417493,105.79,105.76,4.05476126]
[1769914650383,76.53443495,105.8,105.77,4.05476126]
[1769914650584,80.91860988,105.8,105.77,4.05476126]
[1769914651193,90.3704997,105.8,105.76,13.50971735]
[1769914651491,4.38417493,105.79,105.76,13.50971735]
[1769914653901,90.3704997,105.8,105.77,4.05476126]
[1769914654586,4.38417493,105.79,105.75,9.45626477]
[1769914655888,13.83702165,105.79,105.75,9.45626477]
[1769914656594,4.38417493,105.78,105.75,4.05476126]
[1769914656907,13.83702165,105.79,105.75,4.05476126]
[1769914661407,4.17878418,105.78,105.75,4.05476126]
[1769914665009,13.63293438,105.78,105.75,4.05476126]
[1769914665209,9.4541502,105.78,105.75,4.05476126]
[1769914665410,9.45305019,105.79,105.76,4.46840132]
[1769914666395,13.91056112,105.79,105.76,4.46840132]
[1769914668018,4.45751093,105.78,105.74,4.66840132]
[1769914668406,13.91198762,105.77,105.74,4.66840132]
[1769914669611,4.45751093,105.78,105.74,4.66840132]
[1769914671623,9.45447669,105.77,105.74,4.66840132]
[1769914671806,13.91198762,105.77,105.74,4.66840132]
[1769914672006,4.45751093,105.76,105.74,4.66840132]
[1769914672918,4.45751093,105.76,105.74,0.2]
[1769914673728,9.45626477,105.75,105.74,0.2]
[1769914673927,13.9137757,105.75,105.74,0.2]
[1769914674921,4.45751093,105.76,105.74,0.2]
[1769914676612,9.45626477,105.75,105.74,0.2]
[1769914677229,8.93441032,105.75,105.74,0.2]
[1769914677414,7.54255896,105.75,105.74,0.2]
[1769914677614,4.45751093,105.76,105.74,0.2]
[1769914679114,13.91309448,105.76,105.74,0.2]
[1769914679435,76.53443495,105.78,105.75,4.46840132]
[1769914679823,13.91067006,105.79,105.75,4.46840132]
[1769914681340,13.91067006,105.79,105.76,4.46840132]
[1769914683817,9.38047125,105.81,105.77,4.46840132]
[1769914684121,4.45751093,105.81,105.77,4.46840132]
[1769914684327,90.44234573,105.82,105.77,4.46840132]
[1769914685023,90.44234573,105.82,105.79,4.46840132]
[1769914686441,90.44234573,105.82,105.78,9.4535829]
[1769914686442,4.45751093,105.81,105.78,4.46840132]
[1769914686844,4.45751093,105.81,105.77,4.46840132]
[1769914689528,13.92608547,105.8,105.77,4.46840132]
[1769914698422,4.47428963,105.79,105.77,4.46840132]
[1769914698623,4.47428963,105.79,105.75,4.39163885]
[1769914700433,9.4535829,105.78,105.75,4.39163885]
[1769914700623,13.92787253,105.78,105.75,4.39163885]
[1769914701643,76.53443495,105.77,105.74,0.2]
[1769914702139,4.47428963,105.76,105.74,0.2]
[1769914702740,9.45626477,105.75,105.72,4.39163885]
[1769914703037,4.47428963,105.74,105.71,4.59163885]
[1769914704233,13.93179628,105.74,105.71,4.59163885]
[1769914705045,13.93179628,105.74,105.71,0.2]
[1769914705046,4.47428963,105.73,105.71,0.2]
[1769914705746,4.30016805,105.73,105.71,0.2]
[1769914706953,4.12604587,105.73,105.71,0.2]
[1769914708453,3.25536155,105.73,105.71,0.2]
[1769914708650,1.86188295,105.73,105.71,0.2]
[1769914708830,0.64218137,105.73,105.71,0.2]
[1769914709034,9.45750665,105.74,105.71,4.59163885]
[1769914710752,33.09800869,105.75,105.71,4.59163885]
[1769914711244,4.03063081,105.74,105.71,4.59163885]
[1769914712356,4.03063081,105.74,105.71,0.2]
[1769914713760,2.22256586,105.74,105.71,0.2]
[1769914714945,9.45805353,105.73,105.71,0.2]
[1769914715537,9.45805353,105.73,105.69,4.39163885]
[1769914715856,11.69870004,105.73,105.69,4.39163885]
[1769914716969,2.24064651,105.72,105.69,4.39163885]
[1769914717141,11.69870004,105.73,105.69,4.39163885]
[1769914718255,2.24064651,105.72,105.69,4.39163885]
[1769914718463,2.24064651,105.72,105.68,4.19671137]
[1769914719352,2.24064651,105.72,105.68,9.46240575]
[1769914719549,2.24064651,105.72,105.69,4.19671137]
[1769914719858,9.45984296,105.71,105.68,4.19671137]
[1769914720064,2.24064651,105.7,105.66,4.19671137]
[1769914720358,4.27527085,105.7,105.65,0.2]
[1769914720761,4.27527085,105.7,105.65,1e-08]
[1769914720938,4.27527085,105.68,105.63,1e-08]
[1769914721141,4.27527085,105.68,105.61,4.19671137]
[1769914721463,4.27527085,105.66,105.61,4.19671137]
[1769914722163,1.89941958,105.64,105.61,4.19671137]
[1769914722845,1.89941958,105.64,105.6,4.06328414]
[1769914723363,1.89941958,105.64,105.58,4.06328414]
[1769914724154,11.36642705,105.63,105.58,4.06328414]
[1769914724348,1.89941958,105.62,105.58,4.06328414]
[1769914724544,33.13452616,105.63,105.58,4.06328414]
[1769914724749,1.89941958,105.62,105.58,4.06328414]
[1769914726263,11.36784786,105.62,105.58,4.06328414]
[1769914726847,4.91403556,105.63,105.59,4.06328414]
[1769914727344,9.46612522,105.64,105.59,4.06328414]
[1769914727549,11.3655448,105.64,105.59,4.06328414]
[1769914728264,11.3655448,105.64,105.6,4.06328414]
[1769914728667,35.0308231,105.64,105.6,4.06328414]
[1769914728860,1.89941958,105.63,105.59,4.06328414]
[1769914730356,11.36714965,105.63,105.59,4.06328414]
[1769914733277,10.17013114,105.65,105.59,4.06328414]
[1769914733278,12.06955072,105.65,105.6,4.06328414]
[1769914733574,15.36050598,105.65,105.6,4.06328414]
[1769914733755,5.89486029,105.65,105.6,4.06328414]
[1769914735476,5.89486029,105.65,105.61,9.4688003]
[1769914735661,5.89486029,105.65,105.62,4.06328414]
[1769914735974,17.25968253,105.65,105.62,4.06328414]
[1769914737177,15.36026295,105.65,105.62,4.06328414]
[1769914737354,5.89486029,105.65,105.62,4.06328414]
[1769914738179,5.89486029,105.65,105.63,4.06328414]
[1769914741986,15.36031227,105.65,105.63,4.06328414]
[1769914742682,1.89941958,105.64,105.6,4.06328414]
[1769914743483,38.43385453,105.64,105.6,4.06328414]
[1769914744086,9.46700747,105.63,105.6,4.06328414]
[1769914744388,11.36642705,105.63,105.6,4.06328414]
[1769914744577,4.91134441,105.67,105.63,1.18653407]
[1769914744774,47.27355459,105.77,105.63,1.18653407]
[1769914744775,10.5450403,105.71,105.66,3.44834405]
[1769914745086,20.00488326,105.71,105.66,3.44834405]
[1769914745467,6.0450403,105.71,105.67,3.44834405]
[1769914745658,4.90884536,105.74,105.67,3.44834405]
[1769914745864,4.5,105.73,105.67,3.44834405]
[1769914746067,4.5,105.73,105.63,26.3]
[1769914746283,4.5,105.71,105.64,27.111512]
[1769914746481,4.5,105.71,105.64,23.66316795]
[1769914747279,4.5,105.69,105.64,23.66316795]
[1769914747474,4.5,105.69,105.64,33.12927927]
[1769914748187,4.5,105.69,105.64,36.57762332]
[1769914749888,40.61488181,105.7,105.65,3.44834405]
[1769914750294,18.23456115,105.72,105.66,3.44834405]
[1769914750586,18.23456115,105.72,105.67,3.44834405]
[1769914750963,13.9592903,105.72,105.67,3.44834405]
[1769914751584,13.9592903,105.72,105.67,9.22439678]
[1769914752088,4.5,105.71,105.66,18.68871629]
[1769914752293,4.5,105.71,105.66,9.46431951]
[1769914754187,13.9602062,105.71,105.66,18.68871629]
[1769914754390,4.5,105.7,105.66,18.68871629]
[1769914754771,4.5,105.7,105.66,9.46431951]
[1769914755793,4.5,105.7,105.64,18.68980895]
[1769914756297,4.5,105.7,105.65,9.46520151]
[1769914756668,13.96156636,105.7,105.65,9.22439678]
[1769914756989,23.64960741,105.71,105.64,9.46611132]
[1769914756990,13.96027993,105.71,105.66,9.22439678]
[1769914757777,4.5,105.7,105.66,9.22439678]
[1769914758876,4.5,105.7,105.66,9.46431951]
[1769914758877,13.9607553,105.7,105.66,9.46431951]
[1769914759202,13.9607553,105.7,105.66,18.68871629]
[1769914759892,4.5,105.7,105.66,18.68871629]
[1769914760100,18.89824741,105.72,105.67,9.22439678]
[1769914760394,13.95938246,105.72,105.67,9.22439678]
[1769914761395,4.5,105.72,105.68,9.46252838]
[1769914761605,4.5,105.72,105.68,18.68692516]
[1769914762272,4.5,105.73,105.68,18.68692516]
[1769914766692,4.5,105.73,105.69,9.22439678]
[1769914767980,9.43708813,105.76,105.72,9.22439678]
[1769914768188,4.5,105.76,105.72,9.22439678]
[1769914769285,4.5,105.76,105.73,9.45805353]
[1769914770277,4.5,105.76,105.73,18.68245031]
[1769914770484,4.5,105.77,105.73,18.68245031]
[1769914771603,4.5,105.77,105.73,3.44041831]
[1769914772690,19.85103892,105.78,105.74,3.44041831]
[1769914774302,19.85103892,105.78,105.74,12.8974806]
[1769914774907,46.5051828,105.78,105.74,12.8974806]
[1769914775340,5.8970414,105.78,105.75,3.44041831]
[1769914776193,4.5,105.77,105.73,35.73766226]
[1769914776516,4.5,105.77,105.72,3.44041831]
[1769914776809,4.5,105.77,105.72,12.89886423]
[1769914778307,4.5,105.76,105.72,12.89886423]
[1769914781324,4.5,105.75,105.71,86.99179324]
[1769914781494,4.5,105.75,105.71,26.28]
[1769914782004,4.5,105.75,105.7,57.25906817]
[1769914783287,4.5,105.75,105.7,60.69948648]
[1769914783594,4.5,105.74,105.71,9.45984296]
[1769914784113,4.5,105.74,105.7,60.6998111]
[1769914784719,4.5,105.74,105.7,57.25939279]
[1769914785098,4.5,105.74,105.7,60.6998111]
[1769914785422,4.5,105.73,105.7,60.6998111]
[1769914786300,4.5,105.73,105.7,86.9798111]
[1769914787194,4.5,105.73,105.7,60.6998111]
[1769914787400,4.5,105.73,105.7,86.9798111]
[1769914787802,4.5,105.73,105.7,83.53939279]
[1769914788002,4.5,105.73,105.7,86.9798111]
[1769914788516,13.95821084,105.73,105.7,26.28]
[1769914788817,4.5,105.72,105.7,26.28]
[1769914789221,4.5,105.72,105.67,9.46291381]
[1769914789398,4.5,105.72,105.67,35.74291381]
[1769914789920,4.5,105.71,105.67,35.74291381]
[1769914790719,4.5,105.71,105.67,9.46291381]
[1769914791026,4.5,105.71,105.64,77.20875244]
[1769914791322,4.5,105.71,105.64,86.67446372]
[1769914791513,4.5,105.71,105.64,39.18612959]
[1769914791720,4.5,105.7,105.64,26.28]
[1769914791919,4.5,105.7,105.63,86.68937913]
[1769914792418,4.5,105.68,105.63,73.78239931]
[1769914794297,4.5,105.66,105.63,83.24939949]
[1769914794519,4.5,105.66,105.63,56.96939949]
[1769914794820,4.5,105.66,105.63,83.24939949]
[1769914795518,13.96252838,105.68,105.65,47.58539006]
[1769914795718,4.5,105.67,105.63,73.78239931]
[1769914795919,4.5,105.67,105.63,47.50239931]
[1769914796113,4.5,105.65,105.62,47.93319536]
[1769914796310,4.5,105.65,105.62,74.21319536]
[1769914797923,13.96525117,105.65,105.62,74.21319536]
[1769914798132,4.5,105.64,105.62,47.93319536]
[1769914800230,31.15414388,105.66,105.62,60.84143797]
[1769914800622,26.65414388,105.66,105.63,50.94281762]
[1769914800921,26.65414388,105.66,105.65,47.58539006]
[1769914801607,31.15414388,105.66,105.65,47.58539006]
[1769914802106,4.5,105.67,105.65,47.58539006]
[1769914802512,4.5,105.69,105.66,73.62158156]
[1769914802830,4.5,105.7,105.68,47.95533285]
[1769914803521,4.5,105.7,105.67,26.3]
[1769914803827,4.5,105.7,105.68,47.95533285]
[1769914805833,4.5,105.69,105.66,47.88634459]
[1769914806920,4.5,105.69,105.67,47.42279235]
[1769914808332,13.96204133,105.69,105.67,47.42279235]
[1769914810814,33.11258277,105.7,105.68,47.18579954]
[1769914811018,4.38345597,105.69,105.66,51.69595935]
[1769914811529,13.8441939,105.7,105.68,47.18579954]
[1769914812444,4.38345597,105.69,105.65,47.65633832]
[1769914812918,4.38345597,105.67,105.65,47.65633832]
[1769914813319,13.84598435,105.68,105.65,47.65633832]
[1769914813831,9.46252838,105.68,105.65,47.65633832]
[1769914814037,13.84550596,105.69,105.65,47.65633832]
[1769914814332,4.38345597,105.68,105.65,47.65633832]
[1769914814534,4.38345597,105.68,105.65,51.71471605]
[1769914814732,26.3,105.68,105.62,47.7747987]
[1769914815034,4.38345597,105.66,105.62,47.7747987]
[1769914816733,4.38345597,105.66,105.64,47.70247152]
[1769914820437,4.38345597,105.65,105.61,4.05837773]
[1769914820937,4.38345597,105.65,105.6,4.05837773]
[1769914821525,4.38345597,105.64,105.6,4.05837773]
[1769914822345,13.85006693,105.64,105.6,4.05837773]
[1769914823230,13.85006693,105.64,105.6,13.52794044]
[1769914824647,4.38345597,105.63,105.6,13.52794044]
[1769914825628,9.46493997,105.66,105.61,4.05837773]
[1769914825829,9.46493997,105.66,105.63,4.05837773]
[1769914826031,13.84839594,105.66,105.63,4.05837773]
[1769914826230,4.38345597,105.65,105.62,4.05837773]
[1769914826955,13.84919196,105.65,105.62,4.05837773]
[1769914827136,4.38345597,105.64,105.61,13.52706672]
[1769914827950,26.3,105.66,105.63,4.05837773]
[1769914827951,13.84795778,105.66,105.63,4.05837773]
[1769914828646,4.38345597,105.66,105.63,4.05837773]
[1769914828950,13.84613728,105.68,105.64,4.05837773]
[1769914829256,4.38345597,105.69,105.66,4.05837773]
[1769914830348,4.38345597,105.69,105.66,13.52263964]
[1769914830949,4.38345597,105.69,105.65,13.52315503]
[1769914831641,4.38345597,105.68,105.64,13.52406505]
[1769914831953,4.38345597,105.68,105.64,4.05837773]
[1769914832145,4.38345597,105.67,105.64,4.05837773]
[1769914834855,4.38345597,105.67,105.64,13.5244361]
[1769914837056,4.38345597,105.66,105.62,9.46707719]
[1769914838140,4.45742612,105.65,105.62,9.46707719]
[1769914838747,4.45742612,105.65,105.61,13.67139455]
[1769914838954,4.45742612,105.65,105.6,13.67256007]
[1769914839145,4.45742612,105.65,105.61,13.67173132]
[1769914839451,4.45742612,105.65,105.62,4.20302767]
[1769914839846,4.45742612,105.67,105.62,4.20302767]
[1769914840149,9.40221004,105.68,105.65,4.20302767]
[1769914840349,8.18204706,105.68,105.65,4.20302767]
[1769914840555,3.72462094,105.68,105.65,4.20302767]
[1769914840857,4.45742612,105.69,105.65,4.20302767]
[1769914841647,4.45742612,105.69,105.65,13.66747302]
[1769914844745,4.27727194,105.68,105.65,13.66747302]
[1769914844949,4.27727194,105.68,105.62,13.63277404]
[1769914846571,4.27727194,105.66,105.62,13.63277404]
[1769914848465,13.74212485,105.66,105.62,4.16527587]
[1769914848666,4.27727194,105.65,105.59,4.16527587]
[1769914848969,4.27727194,105.65,105.59,13.63537373]
[1769914849759,4.27727194,105.63,105.59,13.63537373]
[1769914850386,4.27727194,105.63,105.58,4.16527587]
[1769914850565,4.27727194,105.62,105.56,4.16527587]
[1769914850861,4.27727194,105.62,105.57,4.16527587]
[1769914852165,9.4688003,105.61,105.57,4.16527587]
[1769914852548,13.74607224,105.61,105.57,4.16527587]
[1769914853661,4.27727194,105.6,105.57,4.16527587]
[1769914854162,13.74706764,105.6,105.57,4.16527587]
[1769914855165,4.27727194,105.6,105.57,4.16527587]
[1769914855680,13.74618713,105.61,105.58,4.16527587]
[1769914855974,4.27727194,105.61,105.58,4.16527587]
[1769914856180,4.27727194,105.61,105.58,13.63672721]
[1769914856557,4.27727194,105.61,105.57,13.63726784]
[1769914857270,4.27727194,105.61,105.58,4.16527587]
[1769914858552,13.74632529,105.61,105.57,13.63726784]
[1769914860769,4.27727194,105.6,105.57,4.16527587]
[1769914861067,4.27727194,105.6,105.56,4.16527587]
[1769914861252,4.27727194,105.6,105.55,0.1]
[1769914861449,4.27727194,105.6,105.55,4.26527587]
[1769914861779,4.27727194,105.6,105.55,13.7393702]
[1769914862073,4.27727194,105.6,105.56,13.63809035]
[1769914862276,4.27727194,105.6,105.57,4.16527587]
[1769914862575,4.27727194,105.6,105.57,13.63745179]
[1769914863865,30.57727194,105.61,105.58,4.16527587]
[1769914864575,30.93141582,105.64,105.58,4.16527587]
[1769914864974,4.27727194,105.63,105.58,4.16527587]
[1769914865280,4.27727194,105.62,105.59,4.16527587]
[1769914865978,4.27727194,105.62,105.58,13.63633273]
[1769914867057,9.4688003,105.61,105.57,4.40176697]
[1769914867266,4.17117851,105.6,105.57,4.40176697]
[1769914867677,4.17117851,105.6,105.56,4.40176697]
[1769914869284,13.64091734,105.6,105.56,13.87495171]
[1769914870875,4.17117851,105.62,105.57,4.40176697]
[1769914871079,13.63930968,105.62,105.57,4.40176697]
[1769914871276,9.11902906,105.61,105.57,4.40176697]
[1769914871468,4.17117851,105.61,105.57,4.40176697]
[1769914872080,4.17117851,105.61,105.58,4.40176697]
[1769914872986,4.17117851,105.61,105.58,13.87299405]
[1769914875084,4.94774335,105.63,105.61,4.40176697]
[1769914875584,40.289997,105.66,105.61,7.85235363]
[1769914875888,45.23578486,105.66,105.62,4.40176697]
[1769914876087,4.17117851,105.65,105.62,4.40176697]
[1769914876687,4.17117851,105.65,105.62,13.86932722]
[1769914882194,4.17117851,105.65,105.6,28.07449253]
[1769914882770,4.17117851,105.65,105.61,4.40176697]
[1769914883370,4.17117851,105.64,105.61,13.87010286]
[1769914885684,62.07111025,105.66,105.62,4.40176697]
[1769914886677,57.12532239,105.66,105.62,4.40176697]
[1769914887102,57.01172368,105.66,105.62,4.40176697]
[1769914887297,30.71172368,105.66,105.62,4.40176697]
[1769914888393,4.17117851,105.66,105.63,13.86877444]
[1769914888697,4.17117851,105.67,105.63,13.86877444]
[1769914888998,4.17117851,105.67,105.64,4.40176697]
[1769914889887,9.11661829,105.68,105.65,4.40176697]
[1769914890305,4.17117851,105.68,105.65,4.40176697]
[1769914890500,4.17117851,105.68,105.65,13.86627519]
[1769914894300,4.17117851,105.68,105.64,13.86742578]
[1769914895502,4.17117851,105.68,105.63,13.86865669]
[1769914895503,4.17117851,105.67,105.63,13.86865669]
[1769914895805,4.17117851,105.66,105.63,13.86865669]
[1769914896384,4.17117851,105.66,105.63,9.46688972]
[1769914898101,30.56039895,105.67,105.63,4.30727777]
[1769914898704,4.26039895,105.68,105.64,4.30727777]
[1769914898913,10.15090038,105.69,105.65,4.30727777]
[1769914899210,4.26039895,105.68,105.63,4.30727777]
[1769914899411,4.26039895,105.68,105.62,27.97525972]
[1769914900105,4.26039895,105.66,105.62,37.44316352]
[1769914900298,4.26039895,105.66,105.63,4.30727777]
[1769914902314,4.26039895,105.66,105.64,9.46611132]
[1769914903209,4.11473073,105.68,105.65,4.1662092]
[1769914904104,4.11473073,105.68,105.62,4.1662092]
[1769914904311,10.16577228,105.69,105.62,13.63356039]
[1769914904312,4.11473073,105.66,105.62,13.63356039]
[1769914904619,30.41473073,105.67,105.63,4.1662092]
[1769914905920,4.11473073,105.67,105.63,4.1662092]
[1769914906417,4.11473073,105.67,105.64,9.46611132]
[1769914908196,4.11473073,105.67,105.64,13.63232052]
[1769914908497,45.92792343,105.69,105.66,13.63052871]
[1769914908498,36.30523216,105.69,105.66,13.63052871]
[1769914908903,32.19050143,105.69,105.66,37.29132749]
[1769914909103,5.89050143,105.69,105.66,37.29132749]
[1769914909507,10.00523216,105.69,105.66,37.29132749]
[1769914909897,10.00523216,105.69,105.66,13.63052871]
[1769914910598,5.89050143,105.69,105.66,13.63052871]
[1769914910817,10.00523216,105.69,105.66,13.63052871]
[1769914911117,10.00523216,105.69,105.66,9.46431951]
[1769914911423,4.11473073,105.68,105.66,9.46431951]
[1769914911616,4.01095507,105.68,105.66,9.46431951]
[1769914913020,4.01095507,105.68,105.65,33.12770454]
[1769914913520,4.01095507,105.68,105.65,37.29391374]
[1769914914521,4.11473073,105.67,105.63,13.63321667]